Workbook

Sheet Sheet1
E4: W-2 | F4: =SUM(F14,F22) -> 138673 | G4: =SUM(G14,G22) -> 133219 | H4: 177472 | I4: 200367
E5: WH | F5: =SUM(F15,F23) -> 12398 | G5: =SUM(G15,G23) -> 11366 | H5: 18557 | I5: 22212
E6: FL Lottery | F6: =SUM(F16,F26) -> 0 | G6: =SUM(G16,G26) -> 0 | H6: 44751 | I6: 2
E7: Lottery WH | F7: =SUM(F17,F27) -> 0 | G7: =SUM(G17,G27) -> 0 | H7: 10740 | I7: 1
E8: Robinhood Net | F8: =SUM(F18,F26)-SUM(F19,F27) -> 0 | G8: =SUM(G18,G26)-SUM(G19,G27) -> 94 | H8: 0 | I8: 1
E9: Morgan Stanley | F9: =F29-F30 -> 10700 | G9: =G29-G30 -> 0 | H9: 0 | I9: 0
E10: Interest | F10: =F32 -> 0 | G10: =G32 -> 0 | H10: 0 | I10: 27
F13: 2020 | G13: 2021 | H13: 2022 | I13: 2023
D14: Nelmarie | E14: W-2 | F14: 25652 | G14: 27795 | H14: 30454 | I14: 30031
E15: WH | F15: 1342 | G15: 1559 | H15: 1765 | I15: 1484
E16: FL Lottery | H16: 44751
E17: Lottery WH | H17: 10740
E18: Robinhood Proceeds | G18: 122 | H18: 7
E19: Cost or Basis | G19: 28 | H19: 7
E20: Net | G20: =G18-G19 -> 94 | H20: =H18-H19 -> 0
D22: Pedro | E22: W-2 | F22: 113021 | G22: 105424 | H22: 147018 | I22: 170336
E23: WH | F23: 11056 | G23: 9807 | H23: 16792 | I23: 20728
E24: FL Lottery
E25: Lottery WH
E26: Robinhood Proceeds | I26: 2
E27: Cost or Basis | I27: 1
E28: Net | I28: =I26-I27 -> 1
E29: Morgan Stanley Proceeds | F29: 22000
E30: Cost or Basis | F30: 11300
E31: Net | F31: =F29-F30 -> 10700
E32: Interest | I32: 27
E37: Return Transcript Wages | F37: 138674 | G37: 133220 | I37: 200368
E38: Economic Impact Pmt | F38: 1700 | G38: 2800
E39: Std Deduction | F39: 24800 | G39: 25100 | I39: 27700
E40: Tentative Tax | F40: 16632 | G40: 15283 | I40: 28602
E41: Total Credit | F41: -4137 | G41: -3500 | I41: -500
E42: Tax | F42: =SUM(F40:F41) -> 12495 | G42: =SUM(G40:G41) -> 11783 | H42: 0 | I42: 28102
E43: Federal WH | F43: -12399 | G43: -11368 | I43: -22212
E44: Refundable Ed Credits | F44: -2092 | G44: -2000
E45: Total payments | F45: =SUM(F43:F44) -> -14491 | G45: =SUM(G43:G44) -> -13368 | I45: =SUM(I43:I44) -> -22212
E46: Balance | F46: =SUM(F42,F45) -> -1996 | G46: =SUM(G42,G45) -> -1585 | I46: =SUM(I42,I45) -> 5890
E47: Applied to next year | F47: -1996
E48: Refund | G48: -1585
E49: Penalties | I49: 159
F51: =F46-F47 -> 0 | G51: =G46-G48 -> 0 | I51: =SUM(I46:I49) -> 6049
E56: Short Term Cap Gains Tax | F56: 1070
